Cogmind - Beta 10.2 @@@ ROGUE MODE // 2021.06.25 @ 23:16:56 Player: Finestep Result: Destroyed by PZ-8IR(z) with Makeshift Shrapnel Gun Performance ------------- Evolutions (3) 1500 Regions Visited (12) 2400 Robots Destroyed (254) 1270 Value Destroyed (7062) 7062 Prototype IDs (20) 400 Alien Tech Used (0) 0 Bonus (2494) 2494 TOTAL SCORE: 15126 Bonus ------- High Alert Combat Kills 635 Follower Combat Kills 735 Entered Garrisons 400 Used RIF Installer 1000 Friendly Fire -276 Cogmind --------- Core Integrity 0/700 Matter 185/300 Energy 150/150 System Corruption 0% Temperature Cool (0) Movement Walking (220) Ox3 Location -7/Zion Parts ------- > --- POWER (1) -------- Micro Nuclear Core > --- PROPULSION (3) --- Carbon-fiber Leg Makeshift Leg > --- UTILITY (6) ------ Improved Heat Sink High-capacity Storage Unit High-capacity Storage Unit High-capacity Storage Unit Improved Weapon Shielding Makeshift Armor Plating > --- WEAPON (3) ------- Makeshift Axe Makeshift Sword Makeshift Spear > --- INVENTORY (28) --- Micro Nuclear Core High-capacity Battery (400) Large Matter Pod (0) Long-range Sensor Array Advanced Signal Interpreter Long-range Terrain Scanner Precision Matter Filter Makeshift Transmission Jammer Advanced Force Field Hacking Suite Relay Coupler [NC] (27) Relay Coupler [Swarmer] (35) Relay Coupler [Grunt] (34) Relay Coupler [Hunter] (13) Makeshift System Restoration Module Decoy Drone Bay (16/16) Shock Bomb Launcher Precision Grenade Launcher Remote Datajack Remote Datajack Makeshift Spear Peak State ------------ > --- POWER ------------ Fission Core > --- PROPULSION ------- Armored Treads Armored Treads Spiked Medium Treads > --- UTILITY ---------- High-capacity Storage Unit High-capacity Storage Unit High-capacity Storage Unit Improved Targeting Computer Precision Matter Filter Advanced Force Field > --- WEAPON ----------- Heavy Battle Rifle Heavy Battle Rifle Heavy Battle Rifle > --- INVENTORY -------- Micro Nuclear Core Micro Nuclear Core F-cell Engine High-capacity Battery Large Matter Pod Long-range Sensor Array Advanced Signal Interpreter Long-range Terrain Scanner Makeshift Transmission Jammer Improved Weapon Shielding Layered Medium Armor Plating Reflective Plating Hacking Suite Relay Coupler [NC] Relay Coupler [Swarmer] Relay Coupler [Grunt] Relay Coupler [Hunter] System Backup Module Decoy Drone Bay Heavy Battle Rifle Shock Bomb Launcher Precision Grenade Launcher Remote Datajack Remote Datajack Makeshift Spear Makeshift Spear [Rating: 58] Favorites ----------- Power Light Angular Momentum Engine Engine Light Angular Momentum Engine Power Core Micro Fission Core Propulsion Armored Treads Treads Armored Treads Leg Makeshift Leg Wheel Armored Wheel Utility High-capacity Storage Unit Device System Backup Module Storage High-capacity Storage Unit Processor Improved Targeting Computer Hackware Relay Coupler [NC] Protection Layered Medium Armor Plating Weapon Heavy Battle Rifle Energy Gun Lightning Gun Energy Cannon Advanced Beam Cannon Ballistic Gun Heavy Battle Rifle Ballistic Cannon Advanced Assault Cannon Launcher Shock Bomb Launcher Special Weapon Remote Datajack Slashing Weapon Ripper Piercing Weapon Makeshift Spear Build | -11 -10 -10 -9 -9 -9 -8 -7 -7 -7 -7 -7 -7 ------- Run | Scr Mat Min Mat Sto Gar Mat Fac Gar Fac Low Low Zio Slots Evolved 6 | . . . 2 . . 2 2 . . . . . Power . | . . . . . . . . . . . . . Propulsion 1 | . . . 1 . . . . . . . . . Utility 4 | . . . 1 . . 1 2 . . . . . Weapon 1 | . . . . . . 1 . . . . . . Parts Attached 258 | 7 20 4 3 43 1 18 22 20 26 19 15 60 Power 24 | 1 2 1 1 2 . 4 1 1 . 1 3 7 Engine 15 | 1 2 1 1 2 . 1 1 . . . 1 5 Core 9 | . . . . . . 3 . 1 . 1 2 2 Reactor . | . . . . . . . . . . . . . Propulsion 52 | 2 5 2 1 11 1 3 2 3 3 1 2 16 Treads 34 | 2 5 2 1 11 1 1 . 3 2 1 2 3 Leg 13 | . . . . . . . . . . . . 13 Wheel 5 | . . . . . . 2 2 . 1 . . . Hover . | . . . . . . . . . . . . . Flight . | . . . . . . . . . . . . . Utility 66 | 2 3 . 1 2 . 5 11 8 5 8 3 18 Device 20 | . . . . . . . 3 3 . 4 1 9 Storage 12 | 2 3 . 1 2 . . 4 . . . . . Processor 2 | . . . . . . . 1 . . . . 1 Hackware 6 | . . . . . . . 1 2 3 . . . Protection 26 | . . . . . . 5 2 3 2 4 2 8 Artifact . | . . . . . . . . . . . . . Weapon 116 | 2 10 1 . 28 . 6 8 8 18 9 7 19 Energy Gun 16 | 2 . . . . . 1 2 4 5 . . 2 Energy Cannon 7 | . 4 . . . . 3 . . . . . . Ballistic Gun 55 | . 6 1 . 20 . 2 4 1 4 4 5 8 Ballistic Cannon 3 | . . . . . . . . . 2 1 . . Launcher 9 | . . . . 1 . . 1 1 2 4 . . Special Weapon 9 | . . . . . . . 1 2 4 . 1 1 Impact Weapon . | . . . . . . . . . . . . . Slashing Weapon 11 | . . . . 7 . . . . 1 . . 3 Piercing Weapon 6 | . . . . . . . . . . . 1 5 Special Melee Weapon . | . . . . . . . . . . . . . Unidentified Prototypes 11 | . . . 1 2 . 3 2 . 1 1 . 1 Parts Lost 34 | . 3 . . . . 1 1 3 3 4 . 19 Power 3 | . 1 . . . . . . . . . . 2 Propulsion 7 | . . . . . . . . . . . . 7 Utility 13 | . . . . . . 1 . 2 . 3 . 7 Weapon 11 | . 2 . . . . . 1 1 3 1 . 3 Highest Loss Streak 7 | . 2 . . . . 1 1 2 2 2 . 7 Average Slot Usage (%) 98 | . 99 100 94 99 100 99 99 99 98 92 95 99 Engine 6 | . 13 14 11 11 11 2 7 6 . . 3 6 Core 1 | . . . . . . 6 . . 7 7 3 . Treads 19 | . 28 28 28 32 33 12 7 21 19 7 16 17 Leg 1 | . . . . . . . . . . . . 4 Wheel 2 | . . . . . . 14 14 1 1 7 2 . Device 3 | . . . . . . . 5 3 2 5 . 6 Storage 25 | . 28 28 32 33 33 27 23 23 23 23 23 23 Processor 4 | . . . . . . . 7 7 7 7 7 6 Hackware 1 | . . . . . . . 1 3 7 7 6 . Protection 4 | . . . . . . 8 6 7 4 1 6 7 Energy Gun 1 | . 1 . . . . 1 4 7 12 . . . Energy Cannon 1 | . 9 . . . . 8 3 . . . . . Ballistic Gun 17 | . 17 28 22 20 22 16 12 13 5 15 19 19 Naked Turns . | . . . . . . . . . . . . . Heaviest Build 135 | 14 74 71 107 111 111 121 124 127 125 122 129 135 Greatest Support 69 | 40 40 43 63 69 60 60 28 60 68 28 60 68 Greatest Overweight (x) 5 | . 3 1 2 1 1 5 5 4 4 4 4 4 Average Overweight (x) 2 | . . 1 1 1 1 4 4 2 2 4 2 2 Largest Inventory Capacity 28 | 8 20 20 28 28 28 28 28 28 28 28 28 28 Average Capacity 26 | 5 17 20 27 28 28 28 28 28 28 28 28 28 Most Carried 28 | 5 20 20 26 28 28 28 28 28 28 28 28 28 Average Carried 26 | 2 17 19 24 27 28 27 27 27 27 27 27 27 Final Capacity 28 | 8 20 20 28 28 28 28 28 28 28 28 28 28 Final Carried 28 | 5 20 20 26 28 28 28 28 28 28 28 28 22 Class Distribution -------------------- 28% | Hauler-Mutant 27% | Bothacker-Mutant 21% | Bothacker-Gunner 8% | Hauler-Tank 5% | Bothacker-Tank 3% | Scavenger-Gunner Dominant Class ---------------- Hauler-Mutant | -10/Materials Hauler-Mutant | -10/Mines Hauler-Mutant | -9/Materials Hauler-Mutant | -9/Storage Hauler-Mutant | -9/Garrison Hauler-Tank | -8/Materials Hauler-Tank | -7/Factory Bothacker-Tank | -7/Garrison Bothacker-Mutant | -7/Factory Bothacker-Gunner | -7/Lower Caves Bothacker-Gunner | -7/Lower Caves Bothacker-Mutant | -7/Zion Resources | -11 -10 -10 -9 -9 -9 -8 -7 -7 -7 -7 -7 -7 ----------- Run | Scr Mat Min Mat Sto Gar Mat Fac Gar Fac Low Low Zio Matter Collected 6923 | 249 326 202 74 1095 51 651 527 595 345 830 287 1691 Remotely . | . . . . . . . . . . . . . Salvage Created 9037 | 102 856 20 141 1762 54 1058 690 937 519 829 328 1741 Parts 506 | 5 47 . 13 105 5 56 45 33 20 22 18 137 Haulers Intercepted 13 | . 2 . 1 6 . 3 . . . 1 . . Recyclers Shooed 8 | 1 1 . . 1 . . 2 . 3 . . . Parts Field Recycled . | . . . . . . . . . . . . . Retrieved Matter . | . . . . . . . . . . . . . Parts Self-Destructed 45 | . . . . . . . . . . 24 17 4 Prevented 9 | . . . . . . . . . . 9 . . Kills | -11 -10 -10 -9 -9 -9 -8 -7 -7 -7 -7 -7 -7 ------- Run | Scr Mat Min Mat Sto Gar Mat Fac Gar Fac Low Low Zio Combat Hostiles Destroyed 124 | . 14 1 1 31 1 17 8 19 5 13 8 6 Melee 3 | . . . . . . . . . . . . 3 Guns 86 | . 4 1 1 31 1 11 8 16 2 5 4 2 Cannons 22 | . 10 . . . . 6 . . . 2 4 . AOE 11 | . . . . . . . . 3 3 5 . . Classes Destroyed 19 | 2 5 . 1 3 . 1 . . . 3 . 4 Worker 7 | . . . . 3 . 1 3 . . . . . Builder 1 | . . . 1 . . . . . . . . . Tunneler 1 | 1 . . . . . . . . . . . . Hauler 13 | . 2 . 1 6 . 3 . . . 1 . . Recycler 12 | 1 3 . . 1 . . 3 . 4 . . . Operator 6 | . 2 . . 3 . . 1 . . . . . Watcher 7 | . 1 . 1 . . 3 1 . 1 . . . Swarmer 33 | . 6 1 . 6 . 4 2 5 2 1 6 . Grunt 49 | . 8 . 1 12 . 6 . 13 . 9 . . Brawler 1 | . . . . . . . . . . 1 . . Duelist 1 | . . . . . . . . . . 1 . . Sentry 24 | . . . . 12 1 6 2 2 . 1 . . Hunter 2 | . . . . . . 1 . . 1 . . . Programmer 9 | . . . . 1 . . 4 . 2 . 2 . Zionite 81 | . . . . . . . . . . . . 81 Samaritan 2 | . . . . . . . . . . 2 . . Tinkerer 1 | . . . . . . . . . . . . 1 Thug 2 | . . . . 1 . . . . . . . 1 Butcher 1 | . . . . . . . . . . . . 1 Marauder 2 | . . . . . . . . . . . . 2 Mutant 1 | . . . . . . . . . . . . 1 Best Kill Streak 8 | 2 3 1 2 5 1 6 3 4 2 5 4 8 Combat Bots Only 5 | . 3 1 1 3 1 4 2 4 2 5 4 1 Max Kills in Single Turn 3 | 1 1 1 1 2 1 1 1 2 2 3 1 2 Gunslinging 1 | . . . . 1 . . . 1 . . . . Exploded 3 | . . . . . . . . 1 2 3 . . Melee 1 | . . . . . . . . . . . . 1 Uniques/NPCs Destroyed 1 | . . . . . . . . . . . . 1 ME-RLN (-7/Zion) Combat | -11 -10 -10 -9 -9 -9 -8 -7 -7 -7 -7 -7 -7 -------- Run | Scr Mat Min Mat Sto Gar Mat Fac Gar Fac Low Low Zio Damage Taken 11800 | . 729 82 10 1192 20 1045 933 1048 514 891 493 4843 Core 1006 | . 77 24 . 150 . 55 73 57 7 66 14 483 Absorbed by Shields 1083 | . . . . . 8 . 216 262 37 202 . 358 Core Remaining (%) 77 | 100 . 59 . . 62 90 . . . . . . Volleys Fired 674 | 4 89 6 11 125 6 71 42 56 41 45 15 163 Largest 3 | 2 2 2 2 2 2 3 3 3 3 3 3 3 Hottest 204 | 90 118 40 40 46 46 159 159 106 204 98 99 116 Shots Fired 1565 | 8 172 12 22 248 12 202 107 119 70 104 41 448 Gun 1367 | 8 109 12 22 246 12 161 91 109 44 77 29 447 Cannon 146 | . 63 . . . . 41 12 . 6 14 10 . Launcher 25 | . . . . 2 . . . 3 7 13 . . Special 27 | . . . . . . . 4 7 13 . 2 1 Kinetic 1258 | . 100 12 22 246 12 151 70 67 24 91 39 424 Thermal 187 | 8 72 . . . . 51 12 . 21 . . 23 Explosive 6 | . . . . 2 . . . 3 1 . . . Electromagnetic 87 | . . . . . . . 21 42 11 13 . . Robot Hit Streak 24 | 6 7 2 6 20 4 17 20 20 10 15 7 24 Robot Miss Streak 7 | . 5 3 2 3 1 7 4 4 3 5 3 4 Penetration Max . | . . . . . . . . . . . . . Secondary Targets 23 | . . . . 3 . . . 3 . 1 . 16 Max Gunslinging Chain 1 | . . . . 1 . . . 1 . 1 . 1 Shots Hit Robots 1058 | 6 104 4 13 169 4 117 87 83 40 61 18 352 Core Hits 438 | 3 40 2 8 72 2 40 45 59 15 36 12 104 Critical Hits 20 | . 2 . . 1 . 5 3 1 . . 1 7 Critical Kills 5 | . . . . 1 . 2 . 1 . . . 1 Critical Parts Destroyed 15 | . 2 . . . . 3 3 . . . 1 6 Melee Attacks 94 | . . . . 11 . . . . . 5 2 76 Impact . | . . . . . . . . . . . . . Slashing 29 | . . . . 11 . . . . . 5 . 13 Piercing 65 | . . . . . . . . . . . 2 63 Sneak Attacks 5 | . . . . . . . . . . 5 . . Combat Hostiles . | . . . . . . . . . . . . . Follow-up Attacks 13 | . . . . . . . . . . . . 13 Damage Inflicted 18806 | 73 1234 41 137 2289 46 1715 1399 1639 865 2234 485 6649 Guns 13265 | 73 501 22 137 2280 46 1228 1153 1354 424 597 148 5302 Cannons 2010 | . 733 . . . . 487 246 . 58 318 168 . Explosions 1461 | . . . . . . . . 274 383 804 . . Melee 2031 | . . . . . . . . . . 515 169 1347 Ramming 39 | . . 19 . 9 . . . 11 . . . . Kinetic 12461 | . 464 22 137 2280 46 1127 941 938 227 915 316 5048 Thermal 2235 | 73 770 . . . . 588 246 . 281 23 . 254 Explosive 481 | . . . . . . . . 274 207 . . . Electromagnetic 1559 | . . . . . . . 212 416 150 781 . . Impact . | . . . . . . . . . . . . . Slashing 888 | . . . . . . . . . . 515 . 373 Piercing 1143 | . . . . . . . . . . . 169 974 Highest Corruption 6 | . 2 2 . . . . 3 3 6 6 1 5 Average Corruption 3 | . 2 2 . . . . 2 3 4 4 1 2 Corruption Purged 12 | . . . . . . . . . . 6 . 6 Effects 158 | . 12 9 . . . . 9 33 35 41 4 15 Message Errors 41 | . 3 4 . . . . 2 6 9 14 2 1 Matter Fused 26 | . . . . . . . 1 10 7 5 . 3 Heat Flow Errors 15 | . . 3 . . . . 2 2 2 4 . 2 Energy Discharges 18 | . 1 . . . . . 1 6 2 1 2 5 Data Loss (minor) 27 | . 4 2 . . . . . 4 8 7 . 2 Data Loss (major) 2 | . . . . . . . . . 1 1 . . Misfires 1 | . . . . . . . . . . 1 . . Targeting Errors 22 | . 4 . . . . . 3 3 5 5 . 2 Weapon Failures 6 | . . . . . . . . 2 1 3 . . Overload Shots . | . . . . . . . . . . . . . Overflow Damage 404 | . . . . . . . . . 24 350 . 30 Projectiles . | . . . . . . . . . . . . . Explosions 24 | . . . . . . . . . 24 . . . Melee 380 | . . . . . . . . . . 350 . 30 Knockbacks 5 | . . . . 1 . . . . . 2 2 . Impact 1 | . . . . 1 . . . . . . . . Kinetic 4 | . . . . . . . . . . 2 2 . Secondary . | . . . . . . . . . . . . . Self-Inflicted Damage . | . . . . . . . . . . . . . Shots . | . . . . . . . . . . . . . Rammed 3 | . . 2 . . . . . 1 . . . . Targets Rammed 4 | . . 2 . 1 . . . 1 . . . . Kicked . | . . . . . . . . . . . . . Crushed 1 | . . . . 1 . . . . . . . . Highest Temperature 522 | 120 384 276 . 28 8 522 274 271 348 268 217 471 Average Temperature 88 | 61 101 123 . 4 3 122 86 73 90 58 66 86 Received Heat Transfer 2201 | . 258 . 6 348 6 360 118 343 72 291 . 399 Effects 18 | . 4 1 . . . 7 1 . 1 . . 4 Shutdowns 4 | . 1 . . . . 2 . . . . . 1 Energy Bleed 5 | . 2 1 . . . . . . 1 . . 1 Interference 5 | . 1 . . . . 1 1 . . . . 2 Damage (minor) 1 | . . . . . . 1 . . . . . . Damage (major) 3 | . . . . . . 3 . . . . . . Siege Activations . | . . . . . . . . . . . . . Robots Corrupted 1 | . . . . . . . . . . 1 . . Combat Hostiles 1 | . . . . . . . . . . 1 . . Parts Fried 6 | . . . . . . . 1 . 1 4 . . Impact Corruptions . | . . . . . . . . . . . . . Robots Melted . | . . . . . . . . . . . . . Combat Hostiles . | . . . . . . . . . . . . . Parts Melted 8 | . . . . . . 1 1 . 1 . . 5 Heat Transferred 4286 | 174 1443 . . . . 1110 444 . 510 50 . 555 Parts Sabotaged . | . . . . . . . . . . . . . Parts Stolen . | . . . . . . . . . . . . . Parts Stripped . | . . . . . . . . . . . . . Power Chain Reactions 2 | . . . . . . . . . 1 1 . . Missiles Intercepted . | . . . . . . . . . . . . . Alert | -11 -10 -10 -9 -9 -9 -8 -7 -7 -7 -7 -7 -7 ------- Run | Scr Mat Min Mat Sto Gar Mat Fac Gar Fac Low Low Zio Peak Influence 1130 | 10 234 129 125 696 522 745 499 1130 625 . . . Initial 592 | . 6 51 . 52 452 254 335 370 592 . . . Average 331 | 4 117 43 74 351 505 480 351 809 227 . . . Maximum Alert Level 4 | . 1 . . 2 2 3 2 4 2 . . . Low Security (%) 37 | 100 83 100 100 5 . . . . 62 . . . Level 1 26 | . 16 . . 63 . 25 72 5 . . . . Level 2 27 | . . . . 31 100 64 27 30 37 . . . Level 3 5 | . . . . . . 10 . 35 . . . . Level 4 3 | . . . . . . . . 28 . . . . Level 5 . | . . . . . . . . . . . . . High Security . | . . . . . . . . . . . . . Max Security . | . . . . . . . . . . . . . Squads Dispatched 29 | . 4 1 . 10 . 3 5 . 6 . . . Investigation 10 | . 1 1 . 5 . 1 1 . 1 . . . Extermination 6 | . . . . . . . 2 . 4 . . . Reinforcement 8 | . 3 . . 2 . . 2 . 1 . . . Assault 1 | . . . . . . 1 . . . . . . Garrison 4 | . . . . 3 . 1 . . . . . . Intercept . | . . . . . . . . . . . . . Construction Impeded . | . . . . . . . . . . . . . Haulers Reinforced . | . . . . . . . . . . . . . Stealth | -11 -10 -10 -9 -9 -9 -8 -7 -7 -7 -7 -7 -7 --------- Run | Scr Mat Min Mat Sto Gar Mat Fac Gar Fac Low Low Zio Distress Signals 8 | . 1 . 2 2 . 3 . . . . . . Communications Jammed . | . . . . . . . . . . . . . Distress Signals . | . . . . . . . . . . . . . Times Spotted 318 | . 34 5 9 46 1 25 16 39 12 20 11 100 Peak Tracking Total 7 | . 3 3 4 4 1 5 4 5 3 7 5 5 Tactical Retreats 28 | . 4 . . 1 . . . 10 . . 3 10 Traps | -11 -10 -10 -9 -9 -9 -8 -7 -7 -7 -7 -7 -7 ------- Run | Scr Mat Min Mat Sto Gar Mat Fac Gar Fac Low Low Zio Traps Triggered 20 | . 3 . . 2 7 . 3 4 1 . . . Indirectly . | . . . . . . . . . . . . . Trap Hack Attempts . | . . . . . . . . . . . . . Triggered . | . . . . . . . . . . . . . Disarmed . | . . . . . . . . . . . . . Reprogrammed 6 | . . . . 6 . . . . . . . . Reused 7 | . . . . . . . . . . . . 7 Traps Extracted . | . . . . . . . . . . . . . Installed 10 | . . . . . . . . . . . . 10 Triggered 2 | . . . . . . . 1 . . 1 . . Machines | -11 -10 -10 -9 -9 -9 -8 -7 -7 -7 -7 -7 -7 ---------- Run | Scr Mat Min Mat Sto Gar Mat Fac Gar Fac Low Low Zio Machines Disabled 21 | . 5 . . 4 1 3 3 3 . . . 2 Max in Single Turn 1 | . 1 . . 1 1 1 1 1 . . . 1 Garrison Access 1 | . . . . . . 1 . . . . . . Garrison Relay 4 | . . . . . 1 . . 3 . . . . Machines Sabotaged . | . . . . . . . . . . . . . Garrisons Compromised . | . . . . . . . . . . . . . Overloaded Fab Kills . | . . . . . . . . . . . . . Fab Network Shutdowns . | . . . . . . . . . . . . . Hacking | -11 -10 -10 -9 -9 -9 -8 -7 -7 -7 -7 -7 -7 --------- Run | Scr Mat Min Mat Sto Gar Mat Fac Gar Fac Low Low Zio Machines Accessed 39 | . 6 2 2 11 . 6 4 . 6 . 1 1 Terminals 28 | . 5 . 2 8 . 4 3 . 6 . . . Fabricators . | . . . . . . . . . . . . . Repair Stations . | . . . . . . . . . . . . . Recycling Units 4 | . 1 . . 2 . 1 . . . . . . Scanalyzers . | . . . . . . . . . . . . . Garrison Access 3 | . . . . 1 . 1 1 . . . . . Total Hacks 100 | . 15 2 8 31 . 16 10 . 15 . 1 2 Successful 45 | . 7 2 2 12 . 7 5 . 7 . 1 2 Failed 55 | . 8 . 6 19 . 9 5 . 8 . . . Catastrophic 8 | . 1 . . 3 . 2 1 . 1 . . . Database Lockouts . | . . . . . . . . . . . . . Manual 60 | . 12 . 8 19 . 12 3 . 6 . . . Terminals 77 | . 13 . 8 23 . 10 8 . 15 . . . Fabricators . | . . . . . . . . . . . . . Repair Stations . | . . . . . . . . . . . . . Recycling Units 11 | . 2 . . 5 . 4 . . . . . . Scanalyzers . | . . . . . . . . . . . . . Garrison Access 7 | . . . . 3 . 2 2 . . . . . Terminal Hacks 20 | . 2 2 . 5 . . 2 . 6 . 1 2 Part Schematic 4 | . 1 . . . . . . . 1 . . 2 Open Door 5 | . . 2 . 2 . . . . . . 1 . Branch Access Points 1 | . . . . . . . . . 1 . . . Terminal Index 1 | . 1 . . . . . . . . . . . Unreport Threat 1 | . . . . 1 . . . . . . . . Locate Traps 4 | . . . . 1 . . 2 . 1 . . . Reprogram Traps 1 | . . . . 1 . . . . . . . . Recall Extermination 1 | . . . . . . . . . 1 . . . Registered Components 1 | . . . . . . . . . 1 . . . Zone Layout 1 | . . . . . . . . . 1 . . . Fabricator Hacks . | . . . . . . . . . . . . . Repair Station Hacks . | . . . . . . . . . . . . . Recycling Unit Hacks 4 | . 1 . . 2 . 1 . . . . . . Retrieve Components 4 | . 1 . . 2 . 1 . . . . . . Scanalyzer . | . . . . . . . . . . . . . Garrison Access Hacks 3 | . . . . 1 . 1 1 . . . . . Unlock Access 3 | . . . . 1 . 1 1 . . . . . Unauthorized Hacks 18 | . 4 . 2 4 . 5 2 . 1 . . . Terminals 11 | . 3 . 2 1 . 3 1 . 1 . . . Track 6 | . 3 . 1 1 . 1 . . . . . . Botnet 5 | . . . 1 . . 2 1 . 1 . . . Fabricators . | . . . . . . . . . . . . . Repair Stations . | . . . . . . . . . . . . . Recycling Units 4 | . 1 . . 2 . 1 . . . . . . Tunnel 4 | . 1 . . 2 . 1 . . . . . . Scanalyzers . | . . . . . . . . . . . . . Garrison Access 3 | . . . . 1 . 1 1 . . . . . Restock 2 | . . . . 1 . 1 . . . . . . Eject 1 | . . . . . . . 1 . . . . . Data Cores Recovered 1 | . . . . 1 . . . . . . . . Used 1 | . . . . 1 . . . . . . . . Hacking Detections 31 | . 5 . 2 10 . 5 3 . 6 . . . Full Trace Events 4 | . . . 1 3 . . . . . . . . Feedback Events . | . . . . . . . . . . . . . Feedback Blocked . | . . . . . . . . . . . . . Robot Schematics Acquired . | . . . . . . . . . . . . . Robots Built . | . . . . . . . . . . . . . Matter . | . . . . . . . . . . . . . Time . | . . . . . . . . . . . . . Total Robot Build Rating . | . . . . . . . . . . . . . Part Schematics Acquired 4 | . 1 . . . . . . . 1 . . 2 Parts Built . | . . . . . . . . . . . . . Matter . | . . . . . . . . . . . . . Time . | . . . . . . . . . . . . . Total Part Build Rating . | . . . . . . . . . . . . . Parts Repaired . | . . . . . . . . . . . . . Time . | . . . . . . . . . . . . . Parts Recycled . | . . . . . . . . . . . . . Recycled Matter . | . . . . . . . . . . . . . Retrieved Matter . | . . . . . . . . . . . . . Retrieved Components 29 | . 9 . . 19 . 1 . . . . . . Parts Scanalyzed . | . . . . . . . . . . . . . Part Schematics Acquired . | . . . . . . . . . . . . . Parts Damaged . | . . . . . . . . . . . . . Bothacking | -11 -10 -10 -9 -9 -9 -8 -7 -7 -7 -7 -7 -7 ------------ Run | Scr Mat Min Mat Sto Gar Mat Fac Gar Fac Low Low Zio Used RIF Installer 2 | . . . . . 1 . . 1 . . . . Command Fork 1 | . . . . . . . . 1 . . . . Robots Hacked 11 | . . . . . . . 1 3 5 . 1 1 Non-combat 4 | . . . . . . . . . 3 . 1 . Combat 7 | . . . . . . . 1 3 2 . . 1 Robot Hacks Applied 16 | . . . . . . . 2 4 8 . 1 1 parse_system 2 | . . . . . . . . 1 . . . 1 drop_inventory 1 | . . . . . . . . . 1 . . . purge_threat 2 | . . . . . . . . . 2 . . . summon_haulers 1 | . . . . . . . . . 1 . . . recall_investigation 1 | . . . . . . . . . 1 . . . find_garrison 1 | . . . . . . . 1 . . . . . reboot_system 1 | . . . . . . . . . 1 . . . formatsys_low 2 | . . . . . . . . . 1 . 1 . formatsys_high 5 | . . . . . . . 1 3 1 . . . Relay Couplers Released 24 | . . . . 4 5 1 3 11 . . . . Ejected 3 | . . . . . . . 3 . . . . . Machine Destruction 17 | . . . . . 5 1 . 11 . . . . Programmers 4 | . . . . 4 . . . . . . . . Attached 6 | . . . . . . . 1 2 3 . . . Robots Rewired 2 | . . . . . . . . . . 2 . . Allies Hacked 2 | . . . . . . . . . . . . 2 Hacks Repelled . | . . . . . . . . . . . . . Allies | -11 -10 -10 -9 -9 -9 -8 -7 -7 -7 -7 -7 -7 -------- Run | Scr Mat Min Mat Sto Gar Mat Fac Gar Fac Low Low Zio Total Allies 13 | . . 2 . . . . 1 4 3 2 1 . Largest Group 3 | . . 2 1 1 . . 1 3 3 3 1 1 Highest-Rated Group 90 | . . 42 31 31 . . 32 61 90 88 30 17 Highest-Rated Ally 32 | . . 31 31 31 . . 32 32 32 32 30 17 Total Orders 7 | . . . . . . . . . . . . 7 STAY 5 | . . . . . . . . . . . . 5 FOLLOW 1 | . . . . . . . . . . . . 1 DROP 1 | . . . . . . . . . . . . 1 Ally Attacks 112 | . . 8 12 32 . . 2 23 7 27 1 . Total Damage 2317 | . . 127 211 460 . . 81 370 256 771 41 . Kills 31 | . . 4 3 9 . . 2 4 2 7 . . Allies Corrupted . | . . . . . . . . . . . . . Allies Melted 1 | . . . . . . . . . . 1 . . Intel | -11 -10 -10 -9 -9 -9 -8 -7 -7 -7 -7 -7 -7 ------- Run | Scr Mat Min Mat Sto Gar Mat Fac Gar Fac Low Low Zio Robot Analysis Total . | . . . . . . . . . . . . . Derelict Logs Recovered 5 | . . 1 . . . . . . . 1 2 1 Drone Launches . | . . . . . . . . . . . . . Drone Recoveries . | . . . . . . . . . . . . . Exploration | -11 -10 -10 -9 -9 -9 -8 -7 -7 -7 -7 -7 -7 ------------- Run | Scr Mat Min Mat Sto Gar Mat Fac Gar Fac Low Low Zio Turns Passed 21903 | 94 1785 1167 305 2300 296 1018 1184 1490 1513 1770 1710 7271 Spaces Moved 8118 | 45 839 625 142 970 128 508 721 611 744 653 896 1236 Core 4 | 4 . . . . . . . . . . . . Treads 5279 | 41 839 625 142 970 128 49 . 564 561 . 535 825 Legs 411 | . . . . . . . . . . . . 411 Wheels 2424 | . . . . . . 459 721 47 183 653 361 . Hover . | . . . . . . . . . . . . . Flight . | . . . . . . . . . . . . . Fastest Speed 50 | 50 160 180 180 180 183 130 130 135 140 140 140 170 Average Speed 176 | 150 175 180 185 182 183 140 137 199 181 140 180 210 Slowest Speed 320 | 160 220 180 200 183 183 203 140 210 225 140 230 320 Overloaded Moves . | . . . . . . . . . . . . . Propulsion Burnouts . | . . . . . . . . . . . . . Robots Hopped . | . . . . . . . . . . . . . Cave-ins Triggered . | . . . . . . . . . . . . . Exploration Rate (%) 53 | 3 98 97 13 90 34 47 22 72 14 70 81 57 Regions Visited 12 Branch Regions 5 Pre-discovered Areas 7 | . 1 1 . 2 . 1 . . . . 1 1 Known Exits Taken 3 | . . . . 1 . . 1 . 1 . . . Unknown Exits Taken 7 | 1 1 1 1 . . 1 . . . 1 1 . Scrap Searched 7 | . . 1 . . . . . . . 4 2 . Spaces Dug 14 | . . . . 14 . . . . . . . . Terrain Destroyed 47 | . . . . 24 . . . 8 6 3 4 2 Melee 5 | . . . . 5 . . . . . . . . Projectile 8 | . . . . . . . . . 2 . 4 2 AOE 34 | . . . . 19 . . . 8 4 3 . . Terrain Rammed . | . . . . . . . . . . . . . Walls Destroyed . | . . . . . . . . . . . . . Machines Disabled . | . . . . . . . . . . . . . Actions | -11 -10 -10 -9 -9 -9 -8 -7 -7 -7 -7 -7 -7 --------- Run | Scr Mat Min Mat Sto Gar Mat Fac Gar Fac Low Low Zio Total 14342 | 60 997 660 165 1257 182 668 833 783 849 1432 959 5497 Wait 4842 | . 7 9 . 68 29 41 23 65 19 669 13 3899 Move 8107 | 44 838 624 141 969 127 507 721 610 743 652 895 1236 Hop . | . . . . . . . . . . . . . Pick Up 134 | 5 25 6 8 13 2 13 7 11 8 9 6 21 Fast Attach 84 | 7 7 1 2 7 . 6 8 2 6 3 5 30 Attach 54 | . 3 1 1 7 . 4 5 9 4 6 2 12 Detach 9 | . . . . 1 . . 1 1 1 1 1 3 Swap 120 | . 10 2 . 29 1 8 9 9 16 10 8 18 Drop 177 | . 18 9 2 26 3 18 17 9 11 9 12 43 Fire 674 | 4 89 6 11 125 6 71 42 56 41 45 15 163 Melee 80 | . . . . 11 . . . . . 5 2 62 Ram . | . . . . . . . . . . . . . Kick . | . . . . . . . . . . . . . Crush 4 | . . 2 . 1 . . . 1 . . . . Escape Stasis 24 | . . . . . 14 . . 10 . . . . Rewire 23 | . . . . . . . . . . 23 . . Trap 10 | . . . . . . . . . . . . 10 Miscellaneous . | . . . . . . . . . . . . . Route ------- -11/Scrapyard -10/Materials (discovered 5 exits: *Mat x3 / *Min x2) -10/Mines (discovered 2 exits: *Mat x2) -9/Materials -9/Storage -9/Garrison -8/Materials -7/Factory -7/Garrison (discovered 2 exits: *Fac x2) -7/Factory (discovered 3 exits: [*Fac] / *Low x2) -7/Lower Caves -7/Lower Caves -7/Zion (discovered 1 exit: [*Pro]) History --------- Turn | Location | Event 14 | -11/Scrapyard | Discovered new exit (range 14) 95 | -11/Scrapyard | Entered Materials 304 | -10/Materials | Build established: Mutant 724 | -10/Materials | Build established: Hauler-Mutant 788 | -10/Materials | Discovered new exit (range 7) 914 | -10/Materials | Discovered new exit (range 15) 1428 | -10/Materials | Discovered new exit (range 7) 1653 | -10/Materials | Discovered new exit (range 15) 1759 | -10/Materials | Discovered new exit (range 15) 1880 | -10/Materials | Entered Mines 1886 | -10/Mines | Learned Materials terminal intel 1913 | -10/Mines | Met a Derelict bent on vengeance 1957 | -10/Mines | Learned location of Storage (-9) 2243 | -10/Mines | Discovered new exit (range 13) 2328 | -10/Mines | Found a hidden stash of uninstalled traps 2594 | -10/Mines | Discovered new exit (range 4) 2604 | -10/Mines | Found the Drone Emporium 2613 | -10/Mines | Found Prototype Device 2715 | -10/Mines | Met a Derelict shopkeep closing up shop 2768 | -10/Mines | A weapon hastily lodged in a ceiling crevice suddenly fell to the ground 3047 | -10/Mines | Entered Materials 3047 | -9/Materials | Accompanied by 1 ally 3047 | -9/Materials | Evolved 2 slots: Propulsion x1, Utility x1 3048 | -9/Materials | Loaded intel: 12 terminal locations 3057 | -9/Materials | Led the pair of lost Derelicts to an unsafe place 3190 | -9/Materials | Discovered new exit (range 10) 3352 | -9/Materials | Entered Storage 3352 | -9/Storage | Accompanied by 1 ally 4005 | -9/Storage | Found Prototype Protection 5393 | -9/Storage | Garrison activated, responded to threat 5609 | -9/Storage | Identified exit to Garrison 5652 | -9/Storage | Entered Garrison 5662 | -9/Garrison | Installed Relay Interface Framework 5691 | -9/Garrison | Triggered checkpoint 5731 | -9/Garrison | Garrison Relay disabled 5806 | -9/Garrison | Triggered checkpoint 5924 | -9/Garrison | Discovered new exit (range 11) 5948 | -9/Garrison | Entered Materials 5948 | -8/Materials | Evolved 2 slots: Utility x1, Weapon x1 6129 | -8/Materials | Identified Lgt. Regenerative Plating 6267 | -8/Materials | Build established: Hauler-Tank 6718 | -8/Materials | Identified exit to Garrison 6722 | -8/Materials | Garrison activated, responded to threat 6950 | -8/Materials | Discovered new exit (range 8) 6966 | -8/Materials | Entered Factory 6966 | -7/Factory | Evolved 2 slots: Utility x2 7459 | -7/Factory | Identified Decoy Drone Bay 8005 | -7/Factory | P-60 Hacker assimilated allied Guardian 4a 8150 | -7/Factory | Identified exit to Garrison 8150 | -7/Factory | Entered Garrison 8157 | -7/Garrison | Expanded RIF knowledge: Command Fork 8208 | -7/Garrison | Triggered checkpoint 8319 | -7/Garrison | Garrison Relay disabled 8447 | -7/Garrison | Triggered checkpoint 8528 | -7/Garrison | Triggered checkpoint 8652 | -7/Garrison | Discovered new exit (range 11) 8739 | -7/Garrison | Triggered checkpoint 8758 | -7/Garrison | Garrison Relay disabled 9006 | -7/Garrison | Triggered checkpoint 9188 | -7/Garrison | Triggered checkpoint 9222 | -7/Garrison | Garrison Relay disabled 9276 | -7/Garrison | Discovered new exit (range 10) 9580 | -7/Garrison | Build established: Bothacker-Tank 9640 | -7/Garrison | Entered Factory 9640 | -7/Factory | Accompanied by 1 ally 10325 | -7/Factory | Discovered new exit (range 11) 10390 | -7/Factory | Identified exit to Lower Caves 10453 | -7/Factory | Discovered new exit (range 10) 10696 | -7/Factory | Build established: Bothacker-Mutant 11153 | -7/Factory | Entered Lower Caves 11153 | -7/Lower Caves | Accompanied by 3 allies 11203 | -7/Lower Caves | Encountered a Warlord checkpoint 11318 | -7/Lower Caves | Attracted the attention of an 0b10 outpost 11529 | -7/Lower Caves | Spotted B-75 Beast 11625 | -7/Lower Caves | Build established: Bothacker-Gunner 11777 | -7/Lower Caves | Learned 12 Factory zone layouts 12916 | -7/Lower Caves | Discovered new exit (range 2) 12923 | -7/Lower Caves | Entered another Lower Caves area 12923 | -7/Lower Caves | Accompanied by 1 ally 13096 | -7/Lower Caves | Attracted the attention of an 0b10 checkpoint 14326 | -7/Lower Caves | Learned 4 Factory zone layouts 14382 | -7/Lower Caves | Discovered new exit (range 14) 14633 | -7/Lower Caves | Entered Zion 14633 | -7/Zion | Accompanied by 1 ally 14759 | -7/Zion | Discovered new exit (range 13) 14786 | -7/Zion | Build established: Bothacker-Mutant 18494 | -7/Zion | Build established: Bothacker-Gunner 18673 | -7/Zion | RIF detected upon attempting to enter Zion 18673 | -7/Zion | Attacked by Zionites 18736 | -7/Zion | ME-RLN came to Zion's defense 18784 | -7/Zion | ME-RLN assimilated allied Sweeper 4a 18839 | -7/Zion | Destroyed ME-RLN 19051 | -7/Zion | Build established: Bothacker-Mutant 19896 | -7/Zion | Spotted 0W-XDI(B) 19902 | -7/Zion | Destroyed 0W-XDI(B) 19905 | -7/Zion | Spotted KL-52N(B) 19993 | -7/Zion | Destroyed KL-52N(B) 20023 | -7/Zion | Extracted access codes from Imprinter's data core 20101 | -7/Zion | Build established: Bothacker-Tank 20651 | -7/Zion | Build established: Bothacker-Gunner 21165 | -7/Zion | Core integrity fell below 50% 21642 | -7/Zion | Lost 3 parts (1u2w) 21715 | -7/Zion | Lost 7 parts (1p3n3u) 21866 | -7/Zion | Build established: Scavenger-Mutant 21881 | -7/Zion | Core integrity fell below 20% 21904 | -7/Zion | Destroyed by PZ-8IR(z) with Makeshift Shrapnel Gun Last Messages --------------- 21864_ 2O-HXY(z) suffers critical hit. 21864_ Destroyed Mak. Power Source. 21864_ Mak. Spear follow-up attack on 2O-HXY(z). 21866_ 2O-HXY(z) destroyed. 21868_ Acquired 11 matter. 21871_ 43-QPF(z) destroyed. 21874_ L5-90X(z) destroyed. 21878_ Destroyed Particle Charger. 21886_ Acquired 8 matter. 4E-SUI(z) bursts out of the Twisted Machinery. 21888_ Acquired 20 matter. 21888_ PZ-8IR(z) pulls a Mak. Shrapnel Gun out of the Twisted Machinery. 21889_ 4E-SUI(z) pulls a Mak. Laser out of the Twisted Machinery. 21892_ Imp. Deuterium Engine destroyed. 21894_ 4E-SUI(z) destroyed. 21899_ Dropped Imp. Treads. 21900_ Acquired Mak. Leg. 21901_ 14-I3P(z) destroyed. 21903_ Acquired 20 matter. 21903_ Imp. Carbon-fiber Leg destroyed. Map ----- +----------------------------------------------------+ | ????????????????????????????????????????#????????? | | ???????????????????????????????????????#"####????? | | ??????????????????????????????????????##"""""#??## | | ???????????????????????##????###??????""" """##?#" | | ?????????????????????##"#####""########"" """#### | | ????????????????######""""##"""""""##""" ""#"#" | | ???????????????##""" """"""""" """""" """"""" | | ???????????????#""""X""" "" "#"" """"""= | | ???????????????#"""" """" """" """ ""%" | | ???????????????##"" """ """""" /" | | ????????????????#### " """""#" | | ??????????????????## =""""#"" | | ??????????????????#" % "#"" """ | | ??????????????????#"" = *= = [* #"""" *% | | ??????????????????#""" = /* %= """"""" | | ??????????????????#""" = ! ""##""" | | ????????????" X"?##""" "# "" "" """""" | | ????????????# ""#"""" = """""""""""""" | | ???????????## """""" = """ """# | | ???????????" """" """""" | | ???????????" """#" "" "" | | ???????????# """"" """"" | | ?????????""""""""#""" "= " * | | ??????????????"##""""" * % %" % / | | ????????????????##"""" ""%=[* ! * "" | | ?????????????????##""""""@ [*%= "" """ | | ??????????????????"""""""= " """"""""""" | | ????????????????#""" """ ==%["" " """""""#"## | | ???????????????"""" *" "" " "###"###?? | | ???????????????#"" */"##""""" "????????? | | ???????????????#""" M """"#""" "????????? | | ????????????????"""" """"#""" ????????? | | ????????????????""""""" z "#?""" ????????? | | ?????????????????"" """" "#?????? ?????????? | | ?????????????????" """" " ""??????? ??????????? | | ????????????????"" """"" "#??????????????????? | | ??????????????????? "" ""??????????????????? | | ???????????????????? ? " "???????????????????? | | ?????????????????????? ??????????????????? | | ???????????????????????? ? ??????????????????? | | ???????????????????????? ??" ??????????????????? | | ???????????????????????? ??"" ??????????????????? | | ?????????????????????????????"???????????????????? | | ?????????????????????????????????????????????????? | | ?????????????????????????????????????????????????? | | ?????????????????????????????????????????????????? | | ?????????????????????????????????????????????????? | | ?????????????????????????????????????????????????? | | ?????????????????????????????????????????????????? | | ?????????????????????????????????????????????????? | +----------------------------------------------------+ Best States ------------- Heat Dissipation 56 Energy Generation 19 Energy Capacity 500 Matter Stores 300 Matter Capacity 300 Sight Range 16 Robot Scan Range 20 Terrain Scan Density 10 Cloak Strength 3 Armor Coverage 375 Resistance: TH 10 Weapon Shielding 66 Evasion (%) 40 Targeting Accuracy 6 Recoil Reduction 3 Matter Filtering 50 Relay Coupler Types 29 Relay Coupler Value 2 Item Schematics ----------------- Lrg. Storage Unit | -10/Materials | Hacked Hvy. Treads | -7/Factory | Hacked Slug Cannon | -7/Zion | Free Plasma Flamer | -7/Zion | Free Robot Schematics ------------------ None Fabricated ------------ Nothing Alien Tech Used ----------------- None Achievements -------------- None Challenges ------------ None Game ------ Seed FieldGaussDoomcannon Manual? 0 Play Time 01:41:44 Cumulative 611.2 hours Start 2021.06.25 @ 20:09:24 End 2021.06.25 @ 23:16:56 Sessions 3 Manual Loads 0 Difficulty Rogue Special Mode None Game No. 367 Rogue 367 Adventurer 0 Explorer 0 Win Type - Total 7 Types 4/0/1/1/1/0/0/0/0 Lore% 89 Gallery% 90 Achievement% 71 Wizard Run 0 Options --------- ASCII 0 Keyboard 0 Movement Mouse Keybinds 1 Fullscreen 2 Font 24/Smallcaps Map View 76x50 Tactical HUD 1 Map Filters NONE Filters NONE Steam 1 RUN: 2193ab4f-6c94-4984-8ecc-064ddb91f2db